[Event "Titled Tuesday Blitz May 24 Early 2022"]
[White "Zaksaite, Salomeja"]
[Black "Zorbos"]
[WhiteFideId "12801496"]
[WhiteElo "1953"]
[BlackElo "2476"]
[Result "0-1"]
[Round "05"]
[TimeControl "180+1"]
[Date "2022.05.25"]
[WhiteClock "0:00:02"]
[BlackClock "0:01:38"]

1. e4 {[%clk 0:03:00]}  c6 {[%clk 0:03:00]} 2. d4 {[%clk 0:03:00]}  d6 {[%clk 0:03:01]} 3. Nc3 {[%clk 0:02:59]}  Nd7 {[%clk 0:02:56]} 4. Be3 {[%clk 0:02:58]}  e5 {[%clk 0:02:56]} 5. Bd3 {[%clk 0:02:45]}  Ngf6 {[%clk 0:02:56]} 6. f3 {[%clk 0:02:44]}  g6 {[%clk 0:02:56]} 7. Nge2 {[%clk 0:02:43]}  Bg7 {[%clk 0:02:56]} 8. O-O {[%clk 0:02:43]}  O-O {[%clk 0:02:57]} 9. Qd2 {[%clk 0:02:42]}  b5 {[%clk 0:02:56]} 10. a3 {[%clk 0:02:41]}  a6 {[%clk 0:02:56]} 11. Rad1 {[%clk 0:02:41]}  Bb7 {[%clk 0:02:57]} 12. Nb1 {[%clk 0:02:39]}  Qc7 {[%clk 0:02:57]} 13. c3 {[%clk 0:02:39]}  Rfe8 {[%clk 0:02:58]} 14. Qe1 {[%clk 0:02:30]}  Rad8 {[%clk 0:02:58]} 15. Qf2 {[%clk 0:02:31]}  c5 {[%clk 0:02:55]} 16. Rd2 {[%clk 0:02:26]}  d5 {[%clk 0:02:48]} 17. dxc5 {[%clk 0:02:10]}  Nb8 {[%clk 0:02:47]} 18. Ng3 {[%clk 0:01:57]}  h5 {[%clk 0:02:44]} 19. Bg5 {[%clk 0:01:51]}  Rd7 {[%clk 0:02:28]} 20. b4 {[%clk 0:01:32]}  Nh7 {[%clk 0:02:28]} 21. h4 {[%clk 0:01:09]}  Nxg5 {[%clk 0:02:28]} 22. hxg5 {[%clk 0:01:08]}  Qd8 {[%clk 0:02:29]} 23. exd5 {[%clk 0:01:06]}  Bxd5 {[%clk 0:02:26]} 24. Ne4 {[%clk 0:00:58]}  Bxe4 {[%clk 0:02:08]} 25. Bxe4 {[%clk 0:00:58]}  Qxg5 {[%clk 0:02:07]} 26. Rxd7 {[%clk 0:00:56]}  Nxd7 {[%clk 0:02:08]} 27. Bc6 {[%clk 0:00:55]}  Re7 {[%clk 0:02:08]} 28. Rd1 {[%clk 0:00:53]}  Nf6 {[%clk 0:02:08]} 29. Qd2 {[%clk 0:00:45]}  Qh4 {[%clk 0:01:49]} 30. Qd8+ {[%clk 0:00:43]}  Ne8 {[%clk 0:01:42]} 31. Bxe8 {[%clk 0:00:39]}  Bh6 {[%clk 0:01:43]} 32. Bxf7+ {[%clk 0:00:12]}  Kxf7 {[%clk 0:01:42]} 33. Qd3 {[%clk 0:00:09]}  Bf4 {[%clk 0:01:41]} 34. Nd2 {[%clk 0:00:07]}  Qh2+ {[%clk 0:01:39]} 35. Kf1 {[%clk 0:00:06]}  Bg3 {[%clk 0:01:38]} 36. Ne4 {[%clk 0:00:02]}  Qh1+ {[%clk 0:01:37]} 37. Ke2 {[%clk 0:00:02]}  Qxg2+ {[%clk 0:01:38]} 0-1


[Site "https://www.chess.com"]

[Event "Titled Tuesday Blitz May 24 Early 2022"]
[White "Zavgorodniy, Sergiy"]
[Black "Harris, Ian"]
[WhiteFideId "14110148"]
[BlackFideId "2020092"]
[WhiteElo "2420"]
[BlackElo "2435"]
[Result "1-0"]
[Round "05"]
[TimeControl "180+1"]
[Date "2022.05.25"]
[WhiteClock "0:00:59"]
[BlackClock "0:00:10"]

1. e4 {[%clk 0:02:15]}  e5 {[%clk 0:02:57]} 2. Nf3 {[%clk 0:02:15]}  Nc6 {[%clk 0:02:57]} 3. Bb5 {[%clk 0:02:14]}  f5 {[%clk 0:02:54]} 4. d3 {[%clk 0:02:10]}  fxe4 {[%clk 0:02:53]} 5. dxe4 {[%clk 0:02:10]}  Nf6 {[%clk 0:02:54]} 6. Bg5 {[%clk 0:02:04]}  Bc5 {[%clk 0:02:49]} 7. Nc3 {[%clk 0:01:59]}  d6 {[%clk 0:02:44]} 8. Nd5 {[%clk 0:01:55]}  Be6 {[%clk 0:02:24]} 9. Bxf6 {[%clk 0:01:48]}  gxf6 {[%clk 0:02:22]} 10. Nh4 {[%clk 0:01:48]}  a6 {[%clk 0:02:06]} 11. Bc4 {[%clk 0:01:43]}  Bf7 {[%clk 0:01:24]} 12. Nf5 {[%clk 0:01:18]}  b5 {[%clk 0:01:21]} 13. Bb3 {[%clk 0:01:17]}  Nd4 {[%clk 0:01:15]} 14. Nxd4 {[%clk 0:01:16]}  Bxd4 {[%clk 0:01:10]} 15. c3 {[%clk 0:01:16]}  Bc5 {[%clk 0:01:04]} 16. Qf3 {[%clk 0:01:15]}  Bxd5 {[%clk 0:00:33]} 17. Bxd5 {[%clk 0:01:14]}  Rb8 {[%clk 0:00:23]} 18. Qh5+ {[%clk 0:01:11]}  Kd7 {[%clk 0:00:20]} 19. Qg4+ {[%clk 0:01:07]}  Ke8 {[%clk 0:00:20]} 20. Qg7 {[%clk 0:01:04]}  Qe7 {[%clk 0:00:10]} 21. Bc6+ {[%clk 0:00:59]} 1-0


[Site "https://www.chess.com"]

[Event "Titled Tuesday Blitz May 24 Early 2022"]
[White "Agasarov, Benik"]
[Black "Rios Escobar, Adan"]
[WhiteFideId "13314823"]
[BlackFideId "3403645"]
[WhiteElo "2608"]
[BlackElo "2410"]
[Result "1-0"]
[Round "06"]
[TimeControl "180+1"]
[Date "2022.05.25"]
[WhiteClock "0:00:04"]
[BlackClock "0:00:01"]

1. e4 {[%clk 0:03:00]}  c5 {[%clk 0:02:58]} 2. Nf3 {[%clk 0:02:58]}  d6 {[%clk 0:02:59]} 3. d4 {[%clk 0:02:55]}  cxd4 {[%clk 0:03:00]} 4. Nxd4 {[%clk 0:02:56]}  Nf6 {[%clk 0:02:59]} 5. Nc3 {[%clk 0:02:56]}  a6 {[%clk 0:02:59]} 6. Bg5 {[%clk 0:02:52]}  Nbd7 {[%clk 0:02:58]} 7. Qe2 {[%clk 0:02:49]}  g6 {[%clk 0:02:16]} 8. O-O-O {[%clk 0:02:27]}  Bg7 {[%clk 0:02:16]} 9. f4 {[%clk 0:02:24]}  O-O {[%clk 0:02:14]} 10. e5 {[%clk 0:02:19]}  dxe5 {[%clk 0:02:12]} 11. fxe5 {[%clk 0:02:18]}  Qa5 {[%clk 0:02:13]} 12. Bxf6 {[%clk 0:02:04]}  exf6 {[%clk 0:02:11]} 13. e6 {[%clk 0:02:03]}  Ne5 {[%clk 0:02:05]} 14. Nb3 {[%clk 0:01:48]}  Qb4 {[%clk 0:01:19]} 15. Nd5 {[%clk 0:01:37]}  Qa4 {[%clk 0:01:07]} 16. e7 {[%clk 0:01:27]}  Re8 {[%clk 0:00:58]} 17. Kb1 {[%clk 0:01:26]}  Bg4 {[%clk 0:00:54]} 18. Qd2 {[%clk 0:01:04]}  Bxd1 {[%clk 0:00:51]} 19. Nc7 {[%clk 0:01:01]}  Rac8 {[%clk 0:00:37]} 20. Bb5 {[%clk 0:00:37]}  axb5 {[%clk 0:00:31]} 21. Nxe8 {[%clk 0:00:37]}  Bxc2+ {[%clk 0:00:30]} 22. Qxc2 {[%clk 0:00:33]}  Rxc2 {[%clk 0:00:19]} 23. Nxf6+ {[%clk 0:00:33]}  Bxf6 {[%clk 0:00:16]} 24. e8=Q+ {[%clk 0:00:33]}  Kg7 {[%clk 0:00:16]} 25. Kxc2 {[%clk 0:00:33]}  Nc4 {[%clk 0:00:12]} 26. Kb1 {[%clk 0:00:11]}  Nxb2 {[%clk 0:00:08]} 27. Rf1 {[%clk 0:00:09]}  Qh4 {[%clk 0:00:03]} 28. Qe2 {[%clk 0:00:08]}  Nc4 {[%clk 0:00:03]} 29. Qf2 {[%clk 0:00:07]}  Qxh2 {[%clk 0:00:02]} 30. Qxf6+ {[%clk 0:00:07]}  Kh6 {[%clk 0:00:03]} 31. Qf4+ {[%clk 0:00:06]}  Qxf4 {[%clk 0:00:03]} 32. Rxf4 {[%clk 0:00:07]}  f5 {[%clk 0:00:03]} 33. Nd4 {[%clk 0:00:07]}  Ne3 {[%clk 0:00:01]} 34. g3 {[%clk 0:00:07]}  Nd5 {[%clk 0:00:01]} 35. Rf2 {[%clk 0:00:06]}  b4 {[%clk 0:00:02]} 36. Nf3 {[%clk 0:00:06]}  Nc3+ {[%clk 0:00:01]} 37. Kc2 {[%clk 0:00:06]}  Ne4 {[%clk 0:00:02]} 38. Rh2+ {[%clk 0:00:06]}  Kg7 {[%clk 0:00:02]} 39. Rg2 {[%clk 0:00:05]}  h5 {[%clk 0:00:02]} 40. Kb3 {[%clk 0:00:05]}  b6 {[%clk 0:00:02]} 41. Kxb4 {[%clk 0:00:06]}  g5 {[%clk 0:00:01]} 42. Kb5 {[%clk 0:00:06]}  g4 {[%clk 0:00:01]} 43. Nd4 {[%clk 0:00:06]}  Kg6 {[%clk 0:00:01]} 44. Kxb6 {[%clk 0:00:06]}  Kg5 {[%clk 0:00:01]} 45. a4 {[%clk 0:00:07]}  f4 {[%clk 0:00:02]} 46. Ne6+ {[%clk 0:00:07]}  Kf5 {[%clk 0:00:01]} 47. Nxf4 {[%clk 0:00:08]}  Nxg3 {[%clk 0:00:02]} 48. Nd3 {[%clk 0:00:06]}  h4 {[%clk 0:00:01]} 49. a5 {[%clk 0:00:05]}  Ke4 {[%clk 0:00:01]} 50. Ne1 {[%clk 0:00:04]} 1-0


[Site "https://www.chess.com"]

[Event "Titled Tuesday Blitz May 24 Early 2022"]
[White "Alinasab, Mobina"]
[Black "Rostovtsev, Dmitry"]
[WhiteFideId "12528897"]
[BlackFideId "34278320"]
[WhiteElo "2031"]
[BlackElo "2274"]
[Result "0-1"]
[Round "06"]
[TimeControl "180+1"]
[Date "2022.05.25"]
[WhiteClock "0:00:01"]
[BlackClock "0:00:05"]

1. Nf3 {[%clk 0:03:00]}  Nf6 {[%clk 0:02:58]} 2. g3 {[%clk 0:03:01]}  g6 {[%clk 0:02:45]} 3. b3 {[%clk 0:03:00]}  Bg7 {[%clk 0:02:46]} 4. Bb2 {[%clk 0:03:00]}  O-O {[%clk 0:02:47]} 5. d4 {[%clk 0:03:01]}  d6 {[%clk 0:02:36]} 6. Bg2 {[%clk 0:03:00]}  e5 {[%clk 0:02:34]} 7. dxe5 {[%clk 0:03:00]}  dxe5 {[%clk 0:02:35]} 8. Qxd8 {[%clk 0:02:56]}  Rxd8 {[%clk 0:02:36]} 9. Bxe5 {[%clk 0:02:56]}  Nc6 {[%clk 0:02:34]} 10. Bc3 {[%clk 0:02:55]}  Ne4 {[%clk 0:02:30]} 11. Bxg7 {[%clk 0:02:54]}  Kxg7 {[%clk 0:02:31]} 12. O-O {[%clk 0:02:52]}  Nb4 {[%clk 0:02:28]} 13. Na3 {[%clk 0:02:44]}  Nc3 {[%clk 0:02:28]} 14. Rfe1 {[%clk 0:02:43]}  c6 {[%clk 0:01:59]} 15. e3 {[%clk 0:02:39]}  c5 {[%clk 0:01:49]} 16. Bf1 {[%clk 0:02:28]}  Bf5 {[%clk 0:01:24]} 17. Ne5 {[%clk 0:02:19]}  f6 {[%clk 0:01:08]} 18. Nd3 {[%clk 0:01:55]}  Nxd3 {[%clk 0:01:05]} 19. cxd3 {[%clk 0:01:56]}  Bxd3 {[%clk 0:01:05]} 20. Bxd3 {[%clk 0:01:55]}  Rxd3 {[%clk 0:01:06]} 21. Rac1 {[%clk 0:01:47]}  b5 {[%clk 0:01:00]} 22. Rc2 {[%clk 0:01:45]}  Rad8 {[%clk 0:00:51]} 23. Kg2 {[%clk 0:01:42]}  a6 {[%clk 0:00:26]} 24. Rec1 {[%clk 0:01:34]}  Ne4 {[%clk 0:00:27]} 25. Nb1 {[%clk 0:01:24]}  R8d5 {[%clk 0:00:13]} 26. f3 {[%clk 0:01:15]}  Nd2 {[%clk 0:00:14]} 27. e4 {[%clk 0:01:11]}  R5d4 {[%clk 0:00:11]} 28. Rxc5 {[%clk 0:01:03]}  Nxf3 {[%clk 0:00:10]} 29. Nc3 {[%clk 0:00:48]}  Ng5 {[%clk 0:00:06]} 30. Rc2 {[%clk 0:00:19]}  Rd2+ {[%clk 0:00:04]} 31. Rxd2 {[%clk 0:00:19]}  Rxd2+ {[%clk 0:00:05]} 32. Kf1 {[%clk 0:00:20]}  Nf3 {[%clk 0:00:03]} 33. Ne2 {[%clk 0:00:18]}  Nxh2+ {[%clk 0:00:03]} 34. Kf2 {[%clk 0:00:17]}  Rxa2 {[%clk 0:00:03]} 35. Rc7+ {[%clk 0:00:15]}  Kh6 {[%clk 0:00:03]} 36. Ke3 {[%clk 0:00:14]}  Ng4+ {[%clk 0:00:04]} 37. Kd3 {[%clk 0:00:14]}  Ne5+ {[%clk 0:00:05]} 38. Ke3 {[%clk 0:00:14]}  Rb2 {[%clk 0:00:05]} 39. Nd4 {[%clk 0:00:14]}  Rg2 {[%clk 0:00:03]} 40. Ne2 {[%clk 0:00:12]}  Rh2 {[%clk 0:00:02]} 41. Ra7 {[%clk 0:00:10]}  Ng4+ {[%clk 0:00:03]} 42. Kd3 {[%clk 0:00:08]}  Ne5+ {[%clk 0:00:04]} 43. Ke3 {[%clk 0:00:08]}  Rh1 {[%clk 0:00:05]} 44. Rxa6 {[%clk 0:00:07]}  Rb1 {[%clk 0:00:04]} 45. Nd4 {[%clk 0:00:07]}  Kg5 {[%clk 0:00:05]} 46. Rb6 {[%clk 0:00:05]}  h5 {[%clk 0:00:03]} 47. Rxb5 {[%clk 0:00:05]}  Rb2 {[%clk 0:00:03]} 48. Nf3+ {[%clk 0:00:04]}  Kg4 {[%clk 0:00:03]} 49. Nxe5+ {[%clk 0:00:04]}  fxe5 {[%clk 0:00:04]} 50. Rb6 {[%clk 0:00:04]}  g5 {[%clk 0:00:04]} 51. b4 {[%clk 0:00:04]}  Kxg3 {[%clk 0:00:04]} 52. b5 {[%clk 0:00:04]}  Rb3+ {[%clk 0:00:04]} 53. Ke2 {[%clk 0:00:04]}  h4 {[%clk 0:00:04]} 54. Rg6 {[%clk 0:00:04]}  g4 {[%clk 0:00:04]} 55. b6 {[%clk 0:00:03]}  h3 {[%clk 0:00:05]} 56. Rh6 {[%clk 0:00:03]}  h2 {[%clk 0:00:05]} 57. Kd2 {[%clk 0:00:01]}  Rxb6 {[%clk 0:00:05]} 0-1


[Site "https://www.chess.com"]

[Event "Titled Tuesday Blitz May 24 Early 2022"]
[White "Al-Tarboush, Ward"]
[Black "Borawski, Jakub"]
[WhiteFideId "7601450"]
[BlackFideId "1143000"]
[WhiteElo "2294"]
[BlackElo "2020"]
[Result "1-0"]
[Round "06"]
[TimeControl "180+1"]
[Date "2022.05.25"]
[WhiteClock "0:00:05"]
[BlackClock "0:00:05"]

1. e4 {[%clk 0:02:53]}  e5 {[%clk 0:03:00]} 2. Nf3 {[%clk 0:02:52]}  Nc6 {[%clk 0:03:00]} 3. Bb5 {[%clk 0:02:52]}  a6 {[%clk 0:03:00]} 4. Ba4 {[%clk 0:02:52]}  Nf6 {[%clk 0:03:01]} 5. O-O {[%clk 0:02:52]}  Be7 {[%clk 0:03:01]} 6. Re1 {[%clk 0:02:43]}  b5 {[%clk 0:03:01]} 7. Bb3 {[%clk 0:02:43]}  d6 {[%clk 0:03:02]} 8. c3 {[%clk 0:02:40]}  O-O {[%clk 0:03:01]} 9. h3 {[%clk 0:02:39]}  Nb8 {[%clk 0:03:02]} 10. d4 {[%clk 0:02:38]}  Nbd7 {[%clk 0:03:02]} 11. Nbd2 {[%clk 0:02:37]}  Bb7 {[%clk 0:03:02]} 12. a4 {[%clk 0:02:30]}  h6 {[%clk 0:02:51]} 13. Qe2 {[%clk 0:01:30]}  c6 {[%clk 0:02:50]} 14. Nh4 {[%clk 0:01:26]}  Re8 {[%clk 0:02:16]} 15. Nf5 {[%clk 0:01:13]}  Bf8 {[%clk 0:02:14]} 16. Nf3 {[%clk 0:00:55]}  exd4 {[%clk 0:02:13]} 17. N3xd4 {[%clk 0:00:53]}  Rxe4 {[%clk 0:02:12]} 18. Be3 {[%clk 0:00:52]}  c5 {[%clk 0:02:06]} 19. Nf3 {[%clk 0:00:51]}  c4 {[%clk 0:01:48]} 20. Bc2 {[%clk 0:00:49]}  Re8 {[%clk 0:01:45]} 21. N3d4 {[%clk 0:00:48]}  Ne5 {[%clk 0:01:23]} 22. axb5 {[%clk 0:00:45]}  axb5 {[%clk 0:01:24]} 23. Nxb5 {[%clk 0:00:43]}  Rxa1 {[%clk 0:01:15]} 24. Rxa1 {[%clk 0:00:44]}  Ng6 {[%clk 0:01:09]} 25. Qd2 {[%clk 0:00:35]}  Ne4 {[%clk 0:00:52]} 26. Bxe4 {[%clk 0:00:29]}  Bxe4 {[%clk 0:00:52]} 27. Nfxd6 {[%clk 0:00:28]}  Bc6 {[%clk 0:00:20]} 28. Nxe8 {[%clk 0:00:25]}  Qxe8 {[%clk 0:00:21]} 29. Nd6 {[%clk 0:00:24]}  Qe5 {[%clk 0:00:16]} 30. Rd1 {[%clk 0:00:18]}  Nh4 {[%clk 0:00:13]} 31. f4 {[%clk 0:00:16]}  Qh5 {[%clk 0:00:08]} 32. g4 {[%clk 0:00:09]}  Qg6 {[%clk 0:00:03]} 33. f5 {[%clk 0:00:07]}  Qf6 {[%clk 0:00:01]} 34. Qf2 {[%clk 0:00:06]}  Nf3+ {[%clk 0:00:01]} 35. Kf1 {[%clk 0:00:06]}  Bxd6 {[%clk 0:00:01]} 36. Bd4 {[%clk 0:00:03]}  Qe5 {[%clk 0:00:02]} 37. Bxe5 {[%clk 0:00:03]}  Bxe5 {[%clk 0:00:02]} 38. Rd8+ {[%clk 0:00:04]}  Kh7 {[%clk 0:00:02]} 39. Qe3 {[%clk 0:00:05]}  Nh2+ {[%clk 0:00:02]} 40. Kg1 {[%clk 0:00:04]}  Nf3+ {[%clk 0:00:01]} 41. Kf2 {[%clk 0:00:05]}  Ng5 {[%clk 0:00:02]} 42. h4 {[%clk 0:00:04]}  Bf6 {[%clk 0:00:02]} 43. hxg5 {[%clk 0:00:04]}  Bxd8 {[%clk 0:00:02]} 44. Qe5 {[%clk 0:00:04]}  Bxg5 {[%clk 0:00:02]} 45. Qh2 {[%clk 0:00:05]}  Be4 {[%clk 0:00:02]} 46. Qc7 {[%clk 0:00:05]}  Bd3 {[%clk 0:00:02]} 47. b4 {[%clk 0:00:05]}  Bh4+ {[%clk 0:00:03]} 48. Ke3 {[%clk 0:00:05]}  Be1 {[%clk 0:00:03]} 49. Kd4 {[%clk 0:00:04]}  Bf2+ {[%clk 0:00:04]} 50. Kd5 {[%clk 0:00:05]}  Be2 {[%clk 0:00:03]} 51. Qxf7 {[%clk 0:00:05]}  Bf3+ {[%clk 0:00:04]} 52. Kxc4 {[%clk 0:00:05]}  Be2+ {[%clk 0:00:04]} 53. Kd5 {[%clk 0:00:04]}  Bxg4 {[%clk 0:00:05]} 54. Qg6+ {[%clk 0:00:04]}  Kh8 {[%clk 0:00:05]} 55. Qxg4 {[%clk 0:00:05]} 1-0


[Site "https://www.chess.com"]

[Event "Titled Tuesday Blitz May 24 Early 2022"]
[White "Araujo Filho, Luiz Antonio Coel"]
[Black "Martin Carmona, Gaston Manuel"]
[WhiteFideId "2130661"]
[BlackFideId "22284567"]
[WhiteElo "2257"]
[BlackElo "2162"]
[Result "0-1"]
[Round "06"]
[TimeControl "180+1"]
[Date "2022.05.25"]
[WhiteClock "0:00:03"]
[BlackClock "0:01:24"]

1. d4 {[%clk 0:03:00]}  Nf6 {[%clk 0:02:55]} 2. Nf3 {[%clk 0:03:00]}  e6 {[%clk 0:02:55]} 3. e3 {[%clk 0:03:00]}  d5 {[%clk 0:02:53]} 4. Bd3 {[%clk 0:03:00]}  c5 {[%clk 0:02:53]} 5. c3 {[%clk 0:03:00]}  Nc6 {[%clk 0:02:54]} 6. Nbd2 {[%clk 0:03:00]}  Bd6 {[%clk 0:02:55]} 7. Qe2 {[%clk 0:03:00]}  e5 {[%clk 0:02:52]} 8. dxc5 {[%clk 0:02:58]}  Bxc5 {[%clk 0:02:49]} 9. e4 {[%clk 0:02:59]}  O-O {[%clk 0:02:46]} 10. h3 {[%clk 0:02:58]}  h6 {[%clk 0:02:34]} 11. O-O {[%clk 0:02:57]}  Re8 {[%clk 0:02:29]} 12. Rd1 {[%clk 0:02:55]}  Be6 {[%clk 0:02:25]} 13. b4 {[%clk 0:02:28]}  Bb6 {[%clk 0:02:22]} 14. b5 {[%clk 0:02:26]}  Na5 {[%clk 0:02:18]} 15. Nxe5 {[%clk 0:02:22]}  Bxh3 {[%clk 0:01:59]} 16. gxh3 {[%clk 0:00:40]}  Rxe5 {[%clk 0:01:57]} 17. Nf3 {[%clk 0:00:39]}  Re8 {[%clk 0:01:37]} 18. e5 {[%clk 0:00:33]}  Nd7 {[%clk 0:01:37]} 19. Bc2 {[%clk 0:00:23]}  Nc5 {[%clk 0:01:35]} 20. Kh2 {[%clk 0:00:14]}  Nc4 {[%clk 0:01:31]} 21. Rg1 {[%clk 0:00:13]}  Kh8 {[%clk 0:01:31]} 22. Be3 {[%clk 0:00:09]}  Nxe5 {[%clk 0:01:28]} 23. Bxc5 {[%clk 0:00:07]}  Ng4+ {[%clk 0:01:23]} 24. Rxg4 {[%clk 0:00:03]}  Rxe2 {[%clk 0:01:24]} 0-1


[Site "https://www.chess.com"]

[Event "Titled Tuesday Blitz May 24 Early 2022"]
[White "Avazkhonov, Alikhon"]
[Black "Winkels, Marcel"]
[WhiteFideId "14208504"]
[BlackFideId "1003887"]
[WhiteElo "1739"]
[BlackElo "1900"]
[Result "0-1"]
[Round "06"]
[TimeControl "180+1"]
[Date "2022.05.25"]
[WhiteClock "0:00:03"]
[BlackClock "0:00:45"]

1. f4 {[%clk 0:03:00]}  c5 {[%clk 0:02:59]} 2. Nf3 {[%clk 0:03:00]}  Nc6 {[%clk 0:02:59]} 3. g3 {[%clk 0:03:01]}  g6 {[%clk 0:02:59]} 4. Bg2 {[%clk 0:03:02]}  Bg7 {[%clk 0:02:59]} 5. O-O {[%clk 0:03:02]}  d6 {[%clk 0:03:00]} 6. d3 {[%clk 0:03:03]}  e6 {[%clk 0:03:00]} 7. e4 {[%clk 0:03:03]}  Nge7 {[%clk 0:03:00]} 8. Nc3 {[%clk 0:03:04]}  O-O {[%clk 0:03:00]} 9. h3 {[%clk 0:03:04]}  Rb8 {[%clk 0:02:58]} 10. Ne2 {[%clk 0:03:02]}  b5 {[%clk 0:02:57]} 11. c3 {[%clk 0:03:02]}  b4 {[%clk 0:02:56]} 12. Be3 {[%clk 0:03:03]}  bxc3 {[%clk 0:02:54]} 13. bxc3 {[%clk 0:03:04]}  Rb2 {[%clk 0:02:35]} 14. Rf2 {[%clk 0:03:02]}  Ba6 {[%clk 0:02:30]} 15. d4 {[%clk 0:03:02]}  cxd4 {[%clk 0:02:29]} 16. cxd4 {[%clk 0:03:01]}  d5 {[%clk 0:02:19]} 17. Ne5 {[%clk 0:02:59]}  Nxe5 {[%clk 0:02:06]} 18. dxe5 {[%clk 0:02:55]}  dxe4 {[%clk 0:02:03]} 19. Nc3 {[%clk 0:01:55]}  Rxf2 {[%clk 0:01:59]} 20. Bxf2 {[%clk 0:01:56]}  Bd3 {[%clk 0:01:39]} 21. Nxe4 {[%clk 0:01:52]}  Bxe4 {[%clk 0:01:31]} 22. Qxd8 {[%clk 0:01:52]}  Rxd8 {[%clk 0:01:29]} 23. Bxe4 {[%clk 0:01:52]}  Nd5 {[%clk 0:01:22]} 24. Bxa7 {[%clk 0:01:49]}  Nc3 {[%clk 0:01:16]} 25. Bc2 {[%clk 0:01:34]}  Ra8 {[%clk 0:01:09]} 26. Bd4 {[%clk 0:01:33]}  Ne2+ {[%clk 0:01:02]} 27. Kf2 {[%clk 0:01:25]}  Nxd4 {[%clk 0:01:03]} 28. Be4 {[%clk 0:01:26]}  Ra3 {[%clk 0:01:00]} 29. g4 {[%clk 0:00:27]}  Nb5 {[%clk 0:00:56]} 30. g5 {[%clk 0:00:17]}  Nc3 {[%clk 0:00:55]} 31. Bc2 {[%clk 0:00:07]}  Rxa2 {[%clk 0:00:54]} 32. Rxa2 {[%clk 0:00:08]}  Nxa2 {[%clk 0:00:53]} 33. Ke3 {[%clk 0:00:08]}  Nb4 {[%clk 0:00:53]} 34. Bb3 {[%clk 0:00:08]}  Kf8 {[%clk 0:00:51]} 35. Kd4 {[%clk 0:00:07]}  Ke7 {[%clk 0:00:51]} 36. Kc5 {[%clk 0:00:08]}  Nd3+ {[%clk 0:00:47]} 37. Kc6 {[%clk 0:00:07]}  Nxf4 {[%clk 0:00:47]} 38. h4 {[%clk 0:00:03]}  Bxe5 {[%clk 0:00:46]} 39. Bc2 {[%clk 0:00:03]}  Ng2 {[%clk 0:00:45]} 0-1


[Site "https://www.chess.com"]

[Event "Titled Tuesday Blitz May 24 Early 2022"]
[White "Baches Garcia, Guillermo"]
[Black "Bifulco, Michel"]
[WhiteFideId "2209764"]
[BlackFideId "828580"]
[WhiteElo "2507"]
[BlackElo "2165"]
[Result "1/2-1/2"]
[Round "06"]
[TimeControl "180+1"]
[Date "2022.05.25"]
[WhiteClock "0:00:12"]
[BlackClock "0:00:57"]

1. e4 {[%clk 0:03:00]}  e5 {[%clk 0:03:00]} 2. Nf3 {[%clk 0:03:00]}  Nc6 {[%clk 0:03:00]} 3. Bc4 {[%clk 0:03:00]}  Nf6 {[%clk 0:03:00]} 4. Ng5 {[%clk 0:02:59]}  d5 {[%clk 0:03:00]} 5. exd5 {[%clk 0:03:00]}  Na5 {[%clk 0:03:00]} 6. Bb5+ {[%clk 0:03:01]}  c6 {[%clk 0:03:00]} 7. dxc6 {[%clk 0:03:01]}  bxc6 {[%clk 0:03:01]} 8. Qf3 {[%clk 0:03:02]}  Be7 {[%clk 0:03:01]} 9. Bd3 {[%clk 0:03:00]}  O-O {[%clk 0:02:53]} 10. Nc3 {[%clk 0:02:58]}  h6 {[%clk 0:02:43]} 11. Nge4 {[%clk 0:02:57]}  Nd5 {[%clk 0:02:43]} 12. Ng3 {[%clk 0:02:54]}  Nb4 {[%clk 0:02:30]} 13. O-O {[%clk 0:02:14]}  Nxd3 {[%clk 0:02:30]} 14. cxd3 {[%clk 0:02:14]}  Ba6 {[%clk 0:02:23]} 15. Nf5 {[%clk 0:02:10]}  Bg5 {[%clk 0:02:14]} 16. h4 {[%clk 0:01:49]}  Bf6 {[%clk 0:02:06]} 17. Ne4 {[%clk 0:01:34]}  Bxh4 {[%clk 0:01:41]} 18. Nc5 {[%clk 0:01:03]}  Bc8 {[%clk 0:01:40]} 19. b4 {[%clk 0:00:45]}  Nb7 {[%clk 0:01:36]} 20. Nxh4 {[%clk 0:00:43]}  Nxc5 {[%clk 0:01:32]} 21. bxc5 {[%clk 0:00:40]}  Qxh4 {[%clk 0:01:29]} 22. Qxc6 {[%clk 0:00:39]}  Bf5 {[%clk 0:01:27]} 23. Bb2 {[%clk 0:00:32]}  Bxd3 {[%clk 0:01:21]} 24. Rfe1 {[%clk 0:00:28]}  Rac8 {[%clk 0:01:08]} 25. Qd5 {[%clk 0:00:25]}  Rfd8 {[%clk 0:01:08]} 26. Qxe5 {[%clk 0:00:25]}  f6 {[%clk 0:01:08]} 27. Qe6+ {[%clk 0:00:20]}  Kh7 {[%clk 0:01:08]} 28. Rac1 {[%clk 0:00:17]}  Re8 {[%clk 0:00:59]} 29. Qh3 {[%clk 0:00:13]}  Qxh3 {[%clk 0:00:57]} 30. gxh3 {[%clk 0:00:12]}  Rxe1+ {[%clk 0:00:57]} 31. Rxe1 {[%clk 0:00:12]}  Rxc5 {[%clk 0:00:57]} 32. Bc3 {[%clk 0:00:12]} 1/2-1/2


[Site "https://www.chess.com"]